[Event "Titled Tuesday Blitz August 09 Early 2022"]
[White "Solon, Nathan"]
[Black "Mardov, Dimitar"]
[WhiteFideId "2017229"]
[BlackFideId "30919495"]
[WhiteElo "2647"]
[BlackElo "2185"]
[Result "0-1"]
[Round "05"]
[TimeControl "180+1"]
[Date "2022.08.09"]
[WhiteClock "0:00:01"]
[BlackClock "0:00:02"]

1. e4 {[%clk 0:02:56]}  e5 {[%clk 0:02:30]} 2. Nf3 {[%clk 0:02:54]}  Nc6 {[%clk 0:02:27]} 3. d3 {[%clk 0:02:54]}  Nf6 {[%clk 0:02:27]} 4. g3 {[%clk 0:02:54]}  d5 {[%clk 0:02:28]} 5. exd5 {[%clk 0:02:54]}  Nxd5 {[%clk 0:02:28]} 6. Bg2 {[%clk 0:02:54]}  Be7 {[%clk 0:02:29]} 7. O-O {[%clk 0:02:54]}  O-O {[%clk 0:02:30]} 8. Re1 {[%clk 0:02:54]}  f6 {[%clk 0:02:30]} 9. c3 {[%clk 0:02:51]}  Nb6 {[%clk 0:02:27]} 10. d4 {[%clk 0:02:49]}  exd4 {[%clk 0:02:26]} 11. Nxd4 {[%clk 0:02:44]}  Nxd4 {[%clk 0:02:26]} 12. cxd4 {[%clk 0:02:43]}  c6 {[%clk 0:02:26]} 13. Nc3 {[%clk 0:02:41]}  Bf5 {[%clk 0:02:19]} 14. Bf4 {[%clk 0:02:32]}  Bd6 {[%clk 0:02:17]} 15. Qb3+ {[%clk 0:02:14]}  Kh8 {[%clk 0:02:16]} 16. Bxd6 {[%clk 0:02:14]}  Qxd6 {[%clk 0:02:17]} 17. a3 {[%clk 0:02:13]}  Rae8 {[%clk 0:02:08]} 18. a4 {[%clk 0:02:09]}  Qxd4 {[%clk 0:01:56]} 19. a5 {[%clk 0:02:08]}  Qc4 {[%clk 0:01:42]} 20. Qxc4 {[%clk 0:01:42]}  Nxc4 {[%clk 0:01:43]} 21. a6 {[%clk 0:01:43]}  bxa6 {[%clk 0:01:36]} 22. Rxe8 {[%clk 0:01:38]}  Rxe8 {[%clk 0:01:31]} 23. Bxc6 {[%clk 0:01:38]}  Rc8 {[%clk 0:01:17]} 24. Rxa6 {[%clk 0:01:18]}  Nxb2 {[%clk 0:01:09]} 25. Nd5 {[%clk 0:01:18]}  Bh3 {[%clk 0:00:53]} 26. f3 {[%clk 0:01:03]}  Nd3 {[%clk 0:00:45]} 27. g4 {[%clk 0:00:44]}  h5 {[%clk 0:00:40]} 28. Ra3 {[%clk 0:00:15]}  Ne5 {[%clk 0:00:26]} 29. Ne7 {[%clk 0:00:12]}  Rc7 {[%clk 0:00:25]} 30. f4 {[%clk 0:00:09]}  hxg4 {[%clk 0:00:09]} 31. fxe5 {[%clk 0:00:06]}  Rxe7 {[%clk 0:00:09]} 32. exf6 {[%clk 0:00:05]}  gxf6 {[%clk 0:00:09]} 33. Kf2 {[%clk 0:00:05]}  Kg7 {[%clk 0:00:08]} 34. Kg3 {[%clk 0:00:04]}  f5 {[%clk 0:00:08]} 35. Ra6 {[%clk 0:00:02]}  Kf6 {[%clk 0:00:05]} 36. Bg2+ {[%clk 0:00:02]}  Kg5 {[%clk 0:00:05]} 37. Bxh3 {[%clk 0:00:02]}  Re3+ {[%clk 0:00:04]} 38. Kg2 {[%clk 0:00:02]}  gxh3+ {[%clk 0:00:03]} 39. Kf2 {[%clk 0:00:02]}  Re7 {[%clk 0:00:04]} 40. Kg3 {[%clk 0:00:03]}  Re3+ {[%clk 0:00:03]} 41. Kf2 {[%clk 0:00:03]}  Re7 {[%clk 0:00:01]} 42. Kg3 {[%clk 0:00:03]}  Rh7 {[%clk 0:00:02]} 43. Rc6 {[%clk 0:00:01]}  Rb7 {[%clk 0:00:02]} 0-1


[Site "https://www.chess.com"]

[Event "Titled Tuesday Blitz August 09 Early 2022"]
[White "Stoleriu, George"]
[Black "Rohith Krishna S"]
[WhiteFideId "1227505"]
[BlackFideId "46617051"]
[WhiteElo "2194"]
[BlackElo "2118"]
[Result "0-1"]
[Round "05"]
[TimeControl "180+1"]
[Date "2022.08.09"]
[WhiteClock "0:00:06"]
[BlackClock "0:00:36"]

1. e4 {[%clk 0:03:00]}  c5 {[%clk 0:02:59]} 2. Nf3 {[%clk 0:03:00]}  d6 {[%clk 0:03:00]} 3. Bb5+ {[%clk 0:02:59]}  Nd7 {[%clk 0:02:59]} 4. d4 {[%clk 0:02:59]}  cxd4 {[%clk 0:02:50]} 5. Qxd4 {[%clk 0:03:00]}  a6 {[%clk 0:02:48]} 6. Bxd7+ {[%clk 0:02:56]}  Bxd7 {[%clk 0:02:48]} 7. c4 {[%clk 0:02:56]}  Nf6 {[%clk 0:02:47]} 8. Bg5 {[%clk 0:02:53]}  e5 {[%clk 0:02:45]} 9. Qd3 {[%clk 0:02:53]}  h6 {[%clk 0:02:41]} 10. Bxf6 {[%clk 0:02:53]}  Qxf6 {[%clk 0:02:42]} 11. Nc3 {[%clk 0:02:53]}  Be6 {[%clk 0:02:42]} 12. Nd5 {[%clk 0:02:52]}  Bxd5 {[%clk 0:02:42]} 13. Qxd5 {[%clk 0:02:53]}  Be7 {[%clk 0:02:40]} 14. Qxb7 {[%clk 0:02:35]}  O-O {[%clk 0:02:40]} 15. b3 {[%clk 0:02:35]}  d5 {[%clk 0:02:30]} 16. Qxd5 {[%clk 0:02:22]}  Bb4+ {[%clk 0:02:28]} 17. Ke2 {[%clk 0:02:19]}  Rad8 {[%clk 0:02:23]} 18. Qxe5 {[%clk 0:02:17]}  Qg6 {[%clk 0:02:17]} 19. Rhd1 {[%clk 0:02:16]}  Rde8 {[%clk 0:02:16]} 20. Qg3 {[%clk 0:02:11]}  Rxe4+ {[%clk 0:02:16]} 21. Kf1 {[%clk 0:02:11]}  Rg4 {[%clk 0:02:16]} 22. Qh3 {[%clk 0:02:04]}  Re8 {[%clk 0:02:16]} 23. Kg1 {[%clk 0:01:40]}  Re2 {[%clk 0:02:16]} 24. a3 {[%clk 0:01:30]}  Bc5 {[%clk 0:02:14]} 25. Rf1 {[%clk 0:01:31]}  a5 {[%clk 0:02:04]} 26. Rae1 {[%clk 0:01:20]}  Rxe1 {[%clk 0:01:15]} 27. Rxe1 {[%clk 0:01:21]}  f6 {[%clk 0:01:15]} 28. Nd2 {[%clk 0:00:54]}  Bxa3 {[%clk 0:01:14]} 29. Qf3 {[%clk 0:00:44]}  Bb4 {[%clk 0:01:13]} 30. Rd1 {[%clk 0:00:42]}  h5 {[%clk 0:01:11]} 31. Nf1 {[%clk 0:00:40]}  h4 {[%clk 0:00:56]} 32. Ne3 {[%clk 0:00:38]}  Rg5 {[%clk 0:00:53]} 33. Nd5 {[%clk 0:00:35]}  Bc5 {[%clk 0:00:53]} 34. h3 {[%clk 0:00:27]}  Rf5 {[%clk 0:00:49]} 35. Qg4 {[%clk 0:00:18]}  Bxf2+ {[%clk 0:00:46]} 36. Kh1 {[%clk 0:00:16]}  Qxg4 {[%clk 0:00:45]} 37. hxg4 {[%clk 0:00:17]}  Re5 {[%clk 0:00:46]} 38. Nf4 {[%clk 0:00:14]}  Bg3 {[%clk 0:00:43]} 39. Nd3 {[%clk 0:00:13]}  Re3 {[%clk 0:00:43]} 40. Kg1 {[%clk 0:00:13]}  Re4 {[%clk 0:00:42]} 41. Kf1 {[%clk 0:00:12]}  Rxg4 {[%clk 0:00:42]} 42. Ke2 {[%clk 0:00:12]}  Re4+ {[%clk 0:00:42]} 43. Kf3 {[%clk 0:00:13]}  Rd4 {[%clk 0:00:42]} 44. Ke3 {[%clk 0:00:11]}  Rd8 {[%clk 0:00:41]} 45. Ra1 {[%clk 0:00:11]}  Bc7 {[%clk 0:00:39]} 46. Ke2 {[%clk 0:00:09]}  Kf7 {[%clk 0:00:39]} 47. Nc5 {[%clk 0:00:09]}  Re8+ {[%clk 0:00:39]} 48. Kf3 {[%clk 0:00:08]}  Re5 {[%clk 0:00:36]} 49. Na6 {[%clk 0:00:08]}  Bd6 {[%clk 0:00:35]} 50. Rd1 {[%clk 0:00:07]}  Ke7 {[%clk 0:00:35]} 51. Rd5 {[%clk 0:00:05]}  Rxd5 {[%clk 0:00:33]} 52. cxd5 {[%clk 0:00:06]}  f5 {[%clk 0:00:34]} 53. Ke3 {[%clk 0:00:04]}  g5 {[%clk 0:00:34]} 54. Kd4 {[%clk 0:00:05]}  g4 {[%clk 0:00:35]} 55. Nc5 {[%clk 0:00:05]}  Bxc5+ {[%clk 0:00:35]} 56. Kxc5 {[%clk 0:00:06]}  h3 {[%clk 0:00:36]} 0-1


[Site "https://www.chess.com"]

[Event "Titled Tuesday Blitz August 09 Early 2022"]
[White "Tica, Sven"]
[Black "Lagno, Kateryna"]
[WhiteFideId "14526948"]
[BlackFideId "14109336"]
[WhiteElo "2350"]
[BlackElo "2522"]
[Result "1-0"]
[Round "05"]
[TimeControl "180+1"]
[Date "2022.08.09"]
[WhiteClock "0:00:36"]
[BlackClock "0:00:25"]

1. e4 {[%clk 0:03:00]}  e5 {[%clk 0:02:56]} 2. f4 {[%clk 0:03:00]}  exf4 {[%clk 0:02:54]} 3. Nf3 {[%clk 0:03:01]}  Ne7 {[%clk 0:02:48]} 4. d4 {[%clk 0:02:59]}  d5 {[%clk 0:02:45]} 5. Bd3 {[%clk 0:02:59]}  dxe4 {[%clk 0:02:41]} 6. Bxe4 {[%clk 0:03:00]}  Ng6 {[%clk 0:02:38]} 7. Qe2 {[%clk 0:03:00]}  Be7 {[%clk 0:02:37]} 8. h4 {[%clk 0:03:00]}  Nxh4 {[%clk 0:02:19]} 9. Bxf4 {[%clk 0:02:47]}  Nxf3+ {[%clk 0:02:12]} 10. Qxf3 {[%clk 0:02:22]}  Qxd4 {[%clk 0:02:08]} 11. c3 {[%clk 0:02:14]}  Qf6 {[%clk 0:02:00]} 12. Bxb7 {[%clk 0:01:48]}  Bxb7 {[%clk 0:01:56]} 13. Qxb7 {[%clk 0:01:47]}  O-O {[%clk 0:01:50]} 14. Qxa8 {[%clk 0:01:26]}  Qxf4 {[%clk 0:01:50]} 15. Qf3 {[%clk 0:01:27]}  Qc1+ {[%clk 0:01:49]} 16. Qd1 {[%clk 0:01:25]}  Qxb2 {[%clk 0:01:45]} 17. Nd2 {[%clk 0:01:24]}  Bc5 {[%clk 0:01:43]} 18. Qb1 {[%clk 0:01:18]}  Re8+ {[%clk 0:01:40]} 19. Kd1 {[%clk 0:01:12]}  Qxc3 {[%clk 0:00:53]} 20. Qxh7+ {[%clk 0:01:03]}  Kf8 {[%clk 0:00:53]} 21. Rc1 {[%clk 0:00:52]}  Qe3 {[%clk 0:00:44]} 22. Rxc5 {[%clk 0:00:45]}  Rd8 {[%clk 0:00:33]} 23. Rc2 {[%clk 0:00:39]}  Nc6 {[%clk 0:00:25]} 24. Re1 {[%clk 0:00:36]} 1-0


[Site "https://www.chess.com"]

[Event "Titled Tuesday Blitz August 09 Early 2022"]
[White "Todorovic, Bojan"]
[Black "Ramirez Vido, Robert Yorisan"]
[WhiteFideId "917087"]
[BlackFideId "3513823"]
[WhiteElo "2266"]
[BlackElo "2411"]
[Result "0-1"]
[Round "05"]
[TimeControl "180+1"]
[Date "2022.08.09"]
[WhiteClock "0:00:10"]
[BlackClock "0:01:15"]

1. d4 {[%clk 0:02:59]}  g6 {[%clk 0:02:59]} 2. c4 {[%clk 0:02:57]}  Nf6 {[%clk 0:02:58]} 3. Nc3 {[%clk 0:02:55]}  Bg7 {[%clk 0:02:58]} 4. e4 {[%clk 0:02:54]}  d6 {[%clk 0:02:58]} 5. Be2 {[%clk 0:02:54]}  O-O {[%clk 0:02:55]} 6. Nf3 {[%clk 0:02:53]}  Na6 {[%clk 0:02:51]} 7. O-O {[%clk 0:02:52]}  e5 {[%clk 0:02:47]} 8. Be3 {[%clk 0:02:37]}  Ng4 {[%clk 0:02:41]} 9. Bg5 {[%clk 0:02:36]}  Qe8 {[%clk 0:02:41]} 10. d5 {[%clk 0:02:09]}  f6 {[%clk 0:02:39]} 11. Bd2 {[%clk 0:02:05]}  f5 {[%clk 0:02:39]} 12. Ne1 {[%clk 0:02:04]}  Nf6 {[%clk 0:02:39]} 13. f3 {[%clk 0:01:54]}  fxe4 {[%clk 0:02:36]} 14. fxe4 {[%clk 0:01:52]}  Nc5 {[%clk 0:02:36]} 15. Bf3 {[%clk 0:01:35]}  a5 {[%clk 0:02:35]} 16. b3 {[%clk 0:01:26]}  h5 {[%clk 0:02:34]} 17. a3 {[%clk 0:01:24]}  a4 {[%clk 0:02:32]} 18. b4 {[%clk 0:01:21]}  Nb3 {[%clk 0:02:32]} 19. Ra2 {[%clk 0:01:19]}  Nxd2 {[%clk 0:02:18]} 20. Rxd2 {[%clk 0:01:05]}  Bh6 {[%clk 0:02:17]} 21. Rd3 {[%clk 0:01:04]}  Ng4 {[%clk 0:02:14]} 22. Nc2 {[%clk 0:00:58]}  Qe7 {[%clk 0:02:11]} 23. Bxg4 {[%clk 0:00:52]}  Bxg4 {[%clk 0:02:10]} 24. Qe1 {[%clk 0:00:45]}  Rxf1+ {[%clk 0:02:08]} 25. Qxf1 {[%clk 0:00:41]}  Qh4 {[%clk 0:02:06]} 26. Qe1 {[%clk 0:00:31]}  Qg5 {[%clk 0:01:51]} 27. h3 {[%clk 0:00:25]}  Bd7 {[%clk 0:01:48]} 28. Rg3 {[%clk 0:00:23]}  Qf6 {[%clk 0:01:40]} 29. Rf3 {[%clk 0:00:23]}  Qg5 {[%clk 0:01:39]} 30. Rg3 {[%clk 0:00:22]}  Qf6 {[%clk 0:01:39]} 31. Rf3 {[%clk 0:00:23]}  Qe7 {[%clk 0:01:33]} 32. Ne3 {[%clk 0:00:19]}  Rf8 {[%clk 0:01:27]} 33. Qe2 {[%clk 0:00:18]}  Rf4 {[%clk 0:01:21]} 34. Kh2 {[%clk 0:00:15]}  h4 {[%clk 0:01:18]} 35. Nb1 {[%clk 0:00:11]}  Qg5 {[%clk 0:01:15]} 36. Nd2 {[%clk 0:00:11]}  Rxf3 {[%clk 0:01:14]} 37. Nxf3 {[%clk 0:00:10]}  Qxe3 {[%clk 0:01:15]} 0-1


[Site "https://www.chess.com"]

[Event "Titled Tuesday Blitz August 09 Early 2022"]
[White "Tuleyeva-Aketayeva, Dana"]
[Black "Bashirli, Saadat"]
[WhiteFideId "13701932"]
[BlackFideId "13429990"]
[WhiteElo "1849"]
[BlackElo "1173"]
[Result "0-1"]
[Round "05"]
[TimeControl "180+1"]
[Date "2022.08.09"]
[WhiteClock "0:00:01"]
[BlackClock "0:01:00"]

1. d4 {[%clk 0:02:56]}  d5 {[%clk 0:02:59]} 2. Nf3 {[%clk 0:02:55]}  e6 {[%clk 0:02:58]} 3. g3 {[%clk 0:02:56]}  c5 {[%clk 0:02:59]} 4. Bg2 {[%clk 0:02:55]}  Nc6 {[%clk 0:02:57]} 5. O-O {[%clk 0:02:54]}  Nf6 {[%clk 0:02:56]} 6. b3 {[%clk 0:02:54]}  cxd4 {[%clk 0:02:53]} 7. Nxd4 {[%clk 0:02:53]}  Bc5 {[%clk 0:02:53]} 8. Bb2 {[%clk 0:02:50]}  O-O {[%clk 0:02:53]} 9. c4 {[%clk 0:02:42]}  Bxd4 {[%clk 0:02:49]} 10. Bxd4 {[%clk 0:02:38]}  dxc4 {[%clk 0:02:49]} 11. Bxc6 {[%clk 0:02:33]}  bxc6 {[%clk 0:02:48]} 12. bxc4 {[%clk 0:02:33]}  Ba6 {[%clk 0:02:48]} 13. Na3 {[%clk 0:02:03]}  Qa5 {[%clk 0:02:40]} 14. Bxf6 {[%clk 0:02:00]}  Qxa3 {[%clk 0:02:35]} 15. Be5 {[%clk 0:01:42]}  Rfd8 {[%clk 0:02:30]} 16. Qc2 {[%clk 0:01:38]}  Qc5 {[%clk 0:02:17]} 17. Qc3 {[%clk 0:01:22]}  f6 {[%clk 0:02:14]} 18. Bf4 {[%clk 0:01:01]}  Qxc4 {[%clk 0:02:10]} 19. Rfc1 {[%clk 0:00:52]}  Qxc3 {[%clk 0:02:03]} 20. Rxc3 {[%clk 0:00:51]}  e5 {[%clk 0:01:52]} 21. Be3 {[%clk 0:00:47]}  Bxe2 {[%clk 0:01:49]} 22. Rxc6 {[%clk 0:00:45]}  a6 {[%clk 0:01:44]} 23. Rac1 {[%clk 0:00:38]}  Rd7 {[%clk 0:01:37]} 24. Kg2 {[%clk 0:00:33]}  Bd3 {[%clk 0:01:32]} 25. f3 {[%clk 0:00:29]}  Bb5 {[%clk 0:01:31]} 26. R6c2 {[%clk 0:00:25]}  Rad8 {[%clk 0:01:30]} 27. Kh3 {[%clk 0:00:19]}  Kf7 {[%clk 0:01:30]} 28. Kg2 {[%clk 0:00:17]}  Ba4 {[%clk 0:01:27]} 29. Rc7 {[%clk 0:00:16]}  Bb5 {[%clk 0:01:25]} 30. Kf2 {[%clk 0:00:15]}  Rxc7 {[%clk 0:01:24]} 31. Rxc7+ {[%clk 0:00:15]}  Rd7 {[%clk 0:01:24]} 32. Rxd7+ {[%clk 0:00:14]}  Bxd7 {[%clk 0:01:25]} 33. Ke1 {[%clk 0:00:14]}  Bb5 {[%clk 0:01:25]} 34. Kd2 {[%clk 0:00:14]}  Ke6 {[%clk 0:01:26]} 35. Kc3 {[%clk 0:00:14]}  Kd5 {[%clk 0:01:27]} 36. Bb6 {[%clk 0:00:12]}  Be2 {[%clk 0:01:23]} 37. f4 {[%clk 0:00:12]}  exf4 {[%clk 0:01:20]} 38. gxf4 {[%clk 0:00:12]}  Ke4 {[%clk 0:01:20]} 39. Kd2 {[%clk 0:00:11]}  Bc4 {[%clk 0:01:18]} 40. Bc7 {[%clk 0:00:10]}  Bxa2 {[%clk 0:01:16]} 41. Bd6 {[%clk 0:00:09]}  Bd5 {[%clk 0:01:15]} 42. Bf8 {[%clk 0:00:08]}  g6 {[%clk 0:01:15]} 43. Bg7 {[%clk 0:00:07]}  f5 {[%clk 0:01:14]} 44. Bh6 {[%clk 0:00:06]}  Kf3 {[%clk 0:01:14]} 45. h4 {[%clk 0:00:05]}  Ke4 {[%clk 0:01:10]} 46. Kc3 {[%clk 0:00:03]}  Bc6 {[%clk 0:01:10]} 47. Kb4 {[%clk 0:00:03]}  Bb5 {[%clk 0:01:11]} 48. Kc5 {[%clk 0:00:02]}  Kd3 {[%clk 0:01:10]} 49. Kd6 {[%clk 0:00:02]}  a5 {[%clk 0:01:04]} 50. Kc5 {[%clk 0:00:02]}  Be8 {[%clk 0:01:02]} 51. Kd6 {[%clk 0:00:01]}  a4 {[%clk 0:01:03]} 52. Ke7 {[%clk 0:00:01]}  Bc6 {[%clk 0:01:00]} 53. Kf8 {[%clk 0:00:01]}  a3 {[%clk 0:01:01]} 54. Kg8 {[%clk 0:00:01]}  a2 {[%clk 0:01:00]} 0-1


[Site "https://www.chess.com"]

[Event "Titled Tuesday Blitz August 09 Early 2022"]
[White "Veiga, Jose Francisco R P Neves"]
[Black "Ternault, Mathieu"]
[WhiteFideId "1930087"]
[BlackFideId "20641532"]
[WhiteElo "2273"]
[BlackElo "2249"]
[Result "1-0"]
[Round "05"]
[TimeControl "180+1"]
[Date "2022.08.09"]
[WhiteClock "0:00:50"]
[BlackClock "0:00:01"]

1. e4 {[%clk 0:03:00]}  Nc6 {[%clk 0:02:57]} 2. Nf3 {[%clk 0:03:00]}  d6 {[%clk 0:02:57]} 3. Nc3 {[%clk 0:03:00]}  Nf6 {[%clk 0:02:58]} 4. d4 {[%clk 0:02:59]}  g6 {[%clk 0:02:58]} 5. Bc4 {[%clk 0:02:55]}  Bg7 {[%clk 0:02:59]} 6. Bb3 {[%clk 0:02:55]}  O-O {[%clk 0:02:59]} 7. O-O {[%clk 0:02:56]}  Bg4 {[%clk 0:02:59]} 8. Be3 {[%clk 0:02:56]}  e5 {[%clk 0:02:59]} 9. d5 {[%clk 0:02:55]}  Nd4 {[%clk 0:02:59]} 10. Bxd4 {[%clk 0:02:51]}  exd4 {[%clk 0:03:00]} 11. Qxd4 {[%clk 0:02:51]}  Bxf3 {[%clk 0:03:00]} 12. gxf3 {[%clk 0:02:51]}  Nh5 {[%clk 0:02:47]} 13. Qe3 {[%clk 0:02:51]}  Qh4 {[%clk 0:02:34]} 14. Ne2 {[%clk 0:02:50]}  Bxb2 {[%clk 0:02:34]} 15. Rab1 {[%clk 0:02:49]}  Be5 {[%clk 0:02:34]} 16. f4 {[%clk 0:02:47]}  Nxf4 {[%clk 0:02:24]} 17. Ng3 {[%clk 0:02:45]}  Qh3 {[%clk 0:02:15]} 18. Qf3 {[%clk 0:02:43]}  f5 {[%clk 0:02:15]} 19. exf5 {[%clk 0:02:39]}  Rxf5 {[%clk 0:02:14]} 20. Bc4 {[%clk 0:02:36]}  Rh5 {[%clk 0:01:56]} 21. Qh1 {[%clk 0:02:32]}  Rf8 {[%clk 0:01:54]} 22. Rfe1 {[%clk 0:02:31]}  Qg4 {[%clk 0:01:49]} 23. Bf1 {[%clk 0:02:29]}  Bd4 {[%clk 0:01:43]} 24. Qe4 {[%clk 0:02:03]}  Nh3+ {[%clk 0:01:36]} 25. Bxh3 {[%clk 0:02:02]}  Bxf2+ {[%clk 0:01:36]} 26. Kh1 {[%clk 0:02:02]}  Qxe4+ {[%clk 0:01:03]} 27. Nxe4 {[%clk 0:01:58]}  Rxh3 {[%clk 0:01:02]} 28. Kg2 {[%clk 0:01:25]}  Bxe1 {[%clk 0:01:02]} 29. Kxh3 {[%clk 0:01:25]}  Ba5 {[%clk 0:00:58]} 30. Rxb7 {[%clk 0:01:25]}  Bb6 {[%clk 0:00:58]} 31. a4 {[%clk 0:01:21]}  Rf3+ {[%clk 0:00:48]} 32. Kg4 {[%clk 0:01:21]}  Ra3 {[%clk 0:00:45]} 33. Rb8+ {[%clk 0:01:20]}  Kg7 {[%clk 0:00:44]} 34. Ng5 {[%clk 0:01:14]}  Rxa4+ {[%clk 0:00:44]} 35. Kf3 {[%clk 0:01:13]}  Rc4 {[%clk 0:00:38]} 36. Ne6+ {[%clk 0:01:12]}  Kf6 {[%clk 0:00:37]} 37. Rh8 {[%clk 0:01:10]}  h5 {[%clk 0:00:33]} 38. Rg8 {[%clk 0:01:10]}  Rc3+ {[%clk 0:00:31]} 39. Ke4 {[%clk 0:01:09]}  Rxc2 {[%clk 0:00:23]} 40. Rf8+ {[%clk 0:01:08]}  Ke7 {[%clk 0:00:23]} 41. Rg8 {[%clk 0:01:08]}  Re2+ {[%clk 0:00:20]} 42. Kf3 {[%clk 0:01:07]}  Rf2+ {[%clk 0:00:20]} 43. Ke4 {[%clk 0:01:07]}  Re2+ {[%clk 0:00:20]} 44. Kf3 {[%clk 0:01:07]}  Rxh2 {[%clk 0:00:21]} 45. Rxg6 {[%clk 0:01:07]}  Rf2+ {[%clk 0:00:18]} 46. Ke4 {[%clk 0:01:06]}  a5 {[%clk 0:00:12]} 47. Rh6 {[%clk 0:01:06]}  a4 {[%clk 0:00:12]} 48. Rxh5 {[%clk 0:01:06]}  a3 {[%clk 0:00:12]} 49. Rh7+ {[%clk 0:01:04]}  Rf7 {[%clk 0:00:08]} 50. Rh2 {[%clk 0:01:03]}  Bf2 {[%clk 0:00:07]} 51. Rh3 {[%clk 0:01:01]}  Rg7 {[%clk 0:00:03]} 52. Rxa3 {[%clk 0:01:01]}  Rg4+ {[%clk 0:00:03]} 53. Kf5 {[%clk 0:00:58]}  Rg2 {[%clk 0:00:02]} 54. Nxc7 {[%clk 0:00:55]}  Kd7 {[%clk 0:00:02]} 55. Ne6 {[%clk 0:00:55]}  Be3 {[%clk 0:00:02]} 56. Rxe3 {[%clk 0:00:55]}  Rf2+ {[%clk 0:00:03]} 57. Ke4 {[%clk 0:00:54]}  Ra2 {[%clk 0:00:03]} 58. Rf3 {[%clk 0:00:53]}  Ra4+ {[%clk 0:00:03]} 59. Nd4 {[%clk 0:00:54]}  Ra1 {[%clk 0:00:03]} 60. Rf7+ {[%clk 0:00:54]}  Ke8 {[%clk 0:00:04]} 61. Rf6 {[%clk 0:00:54]}  Ke7 {[%clk 0:00:04]} 62. Re6+ {[%clk 0:00:53]}  Kd7 {[%clk 0:00:04]} 63. Nf5 {[%clk 0:00:53]}  Re1+ {[%clk 0:00:04]} 64. Ne3 {[%clk 0:00:53]}  Rd1 {[%clk 0:00:03]} 65. Kf5 {[%clk 0:00:53]}  Re1 {[%clk 0:00:01]} 66. Kf6 {[%clk 0:00:50]}  Re2 {[%clk 0:00:01]} 67. Nf5 {[%clk 0:00:50]} 1-0


[Site "https://www.chess.com"]

[Event "Titled Tuesday Blitz August 09 Early 2022"]
[White "Vlassov, Nikolai"]
[Black "Oye-Stromberg, Alexander"]
[WhiteFideId "4103360"]
[BlackFideId "1525999"]
[WhiteElo "2324"]
[BlackElo "1972"]
[Result "1-0"]
[Round "05"]
[TimeControl "180+1"]
[Date "2022.08.09"]
[WhiteClock "0:01:04"]
[BlackClock "0:00:12"]

1. e4 {[%clk 0:03:00]}  e5 {[%clk 0:02:54]} 2. Bc4 {[%clk 0:02:59]}  Nf6 {[%clk 0:02:54]} 3. d3 {[%clk 0:02:59]}  Nc6 {[%clk 0:02:53]} 4. Nf3 {[%clk 0:02:59]}  Bc5 {[%clk 0:02:53]} 5. Bg5 {[%clk 0:02:59]}  h6 {[%clk 0:02:52]} 6. Bh4 {[%clk 0:02:59]}  d6 {[%clk 0:02:53]} 7. Nc3 {[%clk 0:02:59]}  g5 {[%clk 0:02:51]} 8. Bg3 {[%clk 0:02:59]}  Qe7 {[%clk 0:02:47]} 9. Nd2 {[%clk 0:02:54]}  a6 {[%clk 0:02:39]} 10. h4 {[%clk 0:02:54]}  g4 {[%clk 0:02:38]} 11. h5 {[%clk 0:02:54]}  Be6 {[%clk 0:02:27]} 12. Bh4 {[%clk 0:02:53]}  O-O-O {[%clk 0:02:24]} 13. Nd5 {[%clk 0:02:52]}  Bxd5 {[%clk 0:02:24]} 14. exd5 {[%clk 0:02:52]}  Nd4 {[%clk 0:02:24]} 15. Ne4 {[%clk 0:02:52]}  Nxe4 {[%clk 0:02:13]} 16. Bxe7 {[%clk 0:02:51]}  Nxf2 {[%clk 0:02:14]} 17. Kxf2 {[%clk 0:02:48]}  Nf5+ {[%clk 0:02:13]} 18. Ke1 {[%clk 0:02:45]}  Nxe7 {[%clk 0:02:08]} 19. Qxg4+ {[%clk 0:02:45]}  f5 {[%clk 0:02:07]} 20. Qh4 {[%clk 0:02:45]}  Rde8 {[%clk 0:02:05]} 21. Kd2 {[%clk 0:02:40]}  Rhg8 {[%clk 0:02:02]} 22. Rh2 {[%clk 0:02:40]}  Rg4 {[%clk 0:02:02]} 23. Qf6 {[%clk 0:02:39]}  e4 {[%clk 0:01:54]} 24. Rf1 {[%clk 0:02:34]}  e3+ {[%clk 0:01:52]} 25. Ke2 {[%clk 0:02:28]}  Bd4 {[%clk 0:01:36]} 26. Qe6+ {[%clk 0:02:26]}  Kd8 {[%clk 0:01:36]} 27. c3 {[%clk 0:02:25]}  Be5 {[%clk 0:01:34]} 28. Rh3 {[%clk 0:02:16]}  Rxg2+ {[%clk 0:01:34]} 29. Kf3 {[%clk 0:02:02]}  Rg7 {[%clk 0:01:20]} 30. d4 {[%clk 0:01:58]}  Ng8 {[%clk 0:01:07]} 31. Qxe8+ {[%clk 0:01:49]}  Kxe8 {[%clk 0:01:07]} 32. dxe5 {[%clk 0:01:50]}  dxe5 {[%clk 0:01:07]} 33. Kxe3 {[%clk 0:01:50]}  f4+ {[%clk 0:01:06]} 34. Ke4 {[%clk 0:01:48]}  Rg5 {[%clk 0:01:07]} 35. Kd3 {[%clk 0:01:42]}  Nf6 {[%clk 0:01:07]} 36. Re1 {[%clk 0:01:41]}  Ke7 {[%clk 0:01:01]} 37. Bb3 {[%clk 0:01:34]}  Kd6 {[%clk 0:01:00]} 38. c4 {[%clk 0:01:34]}  b6 {[%clk 0:01:00]} 39. Bc2 {[%clk 0:01:30]}  a5 {[%clk 0:00:56]} 40. a3 {[%clk 0:01:28]}  Rg2 {[%clk 0:00:56]} 41. b4 {[%clk 0:01:25]}  e4+ {[%clk 0:00:45]} 42. Kc3 {[%clk 0:01:25]}  e3 {[%clk 0:00:43]} 43. Rf3 {[%clk 0:01:18]}  Ke5 {[%clk 0:00:41]} 44. Rexe3+ {[%clk 0:01:12]}  fxe3 {[%clk 0:00:39]} 45. Rf5+ {[%clk 0:01:13]}  Kd6 {[%clk 0:00:37]} 46. Rxf6+ {[%clk 0:01:13]}  Kd7 {[%clk 0:00:36]} 47. Rxh6 {[%clk 0:01:12]}  e2 {[%clk 0:00:28]} 48. Re6 {[%clk 0:01:11]}  Rg3+ {[%clk 0:00:27]} 49. Kd2 {[%clk 0:01:11]}  Rxa3 {[%clk 0:00:27]} 50. h6 {[%clk 0:01:10]}  axb4 {[%clk 0:00:26]} 51. h7 {[%clk 0:01:09]}  Rh3 {[%clk 0:00:27]} 52. Kxe2 {[%clk 0:01:09]}  Rh2+ {[%clk 0:00:25]} 53. Kd1 {[%clk 0:01:09]}  b3 {[%clk 0:00:25]} 54. Bf5 {[%clk 0:01:06]}  Kd8 {[%clk 0:00:21]} 55. Rg6 {[%clk 0:01:04]}  b2 {[%clk 0:00:12]} 56. Rg8+ {[%clk 0:01:03]}  Ke7 {[%clk 0:00:13]} 57. h8=Q {[%clk 0:01:04]}  Rxh8 {[%clk 0:00:12]} 58. Rxh8 {[%clk 0:01:04]} 1-0


[Site "https://www.chess.com"]

[Event "Titled Tuesday Blitz August 09 Early 2022"]
[White "Yen, William"]
[Black "Fernandez Hernandez, Gerardo"]
[WhiteFideId "30932025"]
[BlackFideId "2207400"]
[WhiteElo "1905"]
[BlackElo "2164"]
[Result "1-0"]
[Round "05"]
[TimeControl "180+1"]
[Date "2022.08.09"]
[WhiteClock "0:00:51"]
[BlackClock "0:00:12"]

1. c4 {[%clk 0:03:00]}  e5 {[%clk 0:02:59]} 2. Nc3 {[%clk 0:03:00]}  d6 {[%clk 0:02:58]} 3. g3 {[%clk 0:02:51]}  g6 {[%clk 0:02:58]} 4. Bg2 {[%clk 0:02:51]}  Bg7 {[%clk 0:02:57]} 5. e3 {[%clk 0:02:49]}  c5 {[%clk 0:02:53]} 6. Nge2 {[%clk 0:02:46]}  Nc6 {[%clk 0:02:53]} 7. O-O {[%clk 0:02:44]}  h5 {[%clk 0:02:52]} 8. d4 {[%clk 0:02:39]}  Nge7 {[%clk 0:02:16]} 9. d5 {[%clk 0:02:26]}  Nb8 {[%clk 0:02:11]} 10. e4 {[%clk 0:02:23]}  Nd7 {[%clk 0:02:07]} 11. a3 {[%clk 0:02:21]}  h4 {[%clk 0:02:01]} 12. b4 {[%clk 0:02:15]}  b6 {[%clk 0:01:47]} 13. h3 {[%clk 0:02:08]}  hxg3 {[%clk 0:01:46]} 14. fxg3 {[%clk 0:02:09]}  Nf6 {[%clk 0:01:44]} 15. g4 {[%clk 0:02:05]}  Bd7 {[%clk 0:01:29]} 16. Be3 {[%clk 0:01:53]}  Qc8 {[%clk 0:01:06]} 17. bxc5 {[%clk 0:01:37]}  bxc5 {[%clk 0:01:02]} 18. Ng3 {[%clk 0:01:38]}  Bxg4 {[%clk 0:00:56]} 19. hxg4 {[%clk 0:01:34]}  Nxg4 {[%clk 0:00:56]} 20. Qf3 {[%clk 0:01:30]}  f5 {[%clk 0:00:47]} 21. exf5 {[%clk 0:01:29]}  gxf5 {[%clk 0:00:45]} 22. Nb5 {[%clk 0:01:06]}  Qd7 {[%clk 0:00:30]} 23. Nxf5 {[%clk 0:00:59]}  Nxf5 {[%clk 0:00:28]} 24. Qxg4 {[%clk 0:00:54]}  Nxe3 {[%clk 0:00:24]} 25. Qg6+ {[%clk 0:00:53]}  Kd8 {[%clk 0:00:20]} 26. Rf7 {[%clk 0:00:54]}  Rh6 {[%clk 0:00:11]} 27. Rxd7+ {[%clk 0:00:50]}  Kxd7 {[%clk 0:00:12]} 28. Qxg7+ {[%clk 0:00:51]} 1-0


[Site "https://www.chess.com"]